bitfinex-derivatives/quotes_SOLF0:USTF0_20250705
["timestamp","ask_amount","ask_price","bid_price","bid_amount"]
[1751723127155,5.72042655,148.01,147.98,9.72619429]
[1751723127361,5.72042655,148.0,147.98,9.72619429]
[1751723127655,6.7551,148.01,147.98,9.72619429]
[1751723127854,5.71505799,148.0,147.98,6.756]
[1751723128051,6.7551,148.01,147.98,6.756]
[1751723128757,4.75673252,148.0,147.98,6.756]
[1751723128957,6.7551,148.01,147.98,6.756]
[1751723129156,4.75673252,148.0,147.98,6.756]
[1751723129357,6.7551,148.01,147.98,6.756]
[1751723129658,4.75419078,148.0,147.98,6.756]
[1751723129852,6.7551,148.01,147.98,6.756]
[1751723130053,4.75419078,148.0,147.98,6.756]
[1751723130251,6.7551,148.01,147.98,6.756]
[1751723130451,4.75235881,148.0,147.98,6.756]
[1751723130656,6.7551,148.01,147.98,6.756]
[1751723130954,4.75231748,148.0,147.98,6.756]
[1751723131156,6.7551,148.01,147.98,6.756]
[1751723136070,6.7553,148.0,147.97,251.5621496]
[1751723137258,6.7553,148.0,147.97,251.5821496]
[1751723137659,6.7553,148.0,147.97,57.3821496]
[1751723137862,6.7553,148.0,147.97,251.5821496]
[1751723138161,6.7549,148.01,147.99,4.6458496]
[1751723142555,6.7545,148.02,147.99,11.4013496]
[1751723143067,6.7547,148.01,147.98,11.4017496]
[1751723146662,6.7547,148.01,147.98,205.5817496]
[1751723149567,6.7547,148.01,147.99,6.7556]
[1751723149768,6.7547,148.01,148.0,2.97263005]
[1751723149970,6.7544,148.02,148.0,2.97263005]
[1751723150269,6.7544,148.02,148.01,2.97263005]
[1751723151271,6.7544,148.02,147.99,6.7555]
[1751723151464,6.7544,148.02,148.01,2.97263005]
[1751723152671,6.7548,148.01,148.0,2.97263005]
[1751723155073,6.7548,148.01,147.98,200.9358]
[1751723155274,6.7548,148.01,148.0,2.97263005]
[1751723162576,4.68989132,148.04,148.0,2.97263005]
[1751723162776,10.42041014,148.03,148.02,2.97263005]
[1751723163570,17.17421014,148.03,148.02,2.97263005]
[1751723166882,6.7543,148.02,147.99,6.7554]
[1751723167075,6.7543,148.02,148.01,2.97263005]
[1751723167374,17.18593962,148.02,148.01,2.97263005]
[1751723167769,6.7548,148.01,148.0,2.97263005]
[1751723167974,5.71728743,148.01,147.99,2.97263005]
[1751723168175,5.71829464,148.0,147.98,2.97263005]
[1751723168379,6.7554,148.0,147.98,2.97263005]
[1751723168888,6.7554,148.0,147.99,2.97263005]
[1751723169175,17.20410007,148.0,147.99,2.97263005]
[1751723171885,10.44870007,148.0,147.99,2.97263005]
[1751723172086,4.72446285,148.0,147.99,2.97263005]
[1751723172480,6.7545,148.02,147.99,9.72823005]
[1751723172682,10.45707184,148.01,147.99,6.7556]
[1751723172884,6.7545,148.02,147.97,45.98]
[1751723173079,10.46063628,148.01,147.97,45.98]
[1751723173283,6.7545,148.02,147.99,6.7552]
[1751723173586,10.46112097,148.01,147.99,6.7552]
[1751723173780,6.7545,148.02,148.0,2.97263005]
[1751723173975,6.7545,148.02,147.97,45.98]
[1751723173976,6.7545,148.02,148.01,2.97263005]
[1751723174182,17.18329095,148.02,148.01,2.97263005]
[1751723178688,17.38503661,148.02,147.99,2.97263005]
[1751723178984,17.38498075,148.01,147.98,2.97263005]
[1751723179179,17.18419095,148.0,147.98,2.97263005]
[1751723179380,10.42879095,147.99,147.98,2.97263005]
[1751723180175,6.7554,148.0,147.98,2.97263005]
[1751723180374,6.7554,148.0,147.98,9.72863005]
[1751723180779,6.7554,148.0,147.99,2.97263005]
[1751723180981,17.20378752,148.0,147.99,2.97263005]
[1751723181686,11.04253567,148.04,147.99,2.97263005]
[1751723181885,17.40631832,148.03,147.99,4.64412381]
[1751723182089,4.7482,148.04,147.99,4.64412381]
[1751723182090,17.20385002,148.02,147.99,4.64412381]
[1751723182282,10.44945002,148.01,147.99,11.39942381]
[1751723182482,6.7544,148.02,147.99,11.39942381]
[1751723182679,10.44932435,148.01,147.99,11.39942381]
[1751723182884,6.7544,148.02,147.99,11.39942381]
[1751723183087,10.44932139,148.01,147.99,11.39942381]
[1751723183389,6.7544,148.02,147.99,11.39942381]
[1751723183592,4.71949959,148.01,147.99,11.39942381]
[1751723183791,6.7544,148.02,147.99,11.39942381]
[1751723183992,4.71949959,148.01,147.99,11.39942381]
[1751723184187,6.7544,148.02,148.0,6.7551]
[1751723184386,4.71938879,148.01,148.0,6.7551]
[1751723184690,6.754,148.03,148.0,6.7551]
[1751723184891,10.44954563,148.02,148.0,6.7551]
[1751723185086,6.754,148.03,148.0,6.7551]
[1751723185288,10.44913655,148.02,148.0,6.7551]
[1751723185597,6.754,148.03,148.0,6.7551]
[1751723185797,10.45307577,148.02,148.0,6.7551]
[1751723186092,6.754,148.03,148.0,6.7551]
[1751723186292,10.4527282,148.02,148.01,6.7547]
[1751723186993,10.4527282,148.02,148.01,11.39882381]
[1751723187194,4.72071179,148.02,148.01,11.39882381]
[1751723188103,6.7535,148.04,148.01,11.39882381]
[1751723188399,10.45120387,148.03,148.01,11.39882381]
[1751723188601,6.7535,148.04,148.01,11.39882381]
[1751723188804,10.45088846,148.03,148.01,11.39882381]
[1751723189004,6.7535,148.04,148.01,11.39882381]
[1751723189199,10.45079914,148.03,148.01,11.39882381]
[1751723189499,6.7535,148.04,148.01,11.39882381]
[1751723189698,17.21586852,148.03,148.01,11.39882381]
[1751723189894,6.7538,148.03,148.01,11.39882381]
[1751723190899,4.73996135,148.02,148.01,11.39882381]
[1751723191103,6.7538,148.03,148.01,11.39882381]
[1751723194606,6.7538,148.03,148.0,6.7548]
[1751723194801,6.7538,148.03,148.0,11.39892381]
[1751723204011,6.7538,148.03,148.02,2.97184076]
[1751723204213,17.2267619,148.03,148.02,2.97184076]
[1751723219226,11.49300314,148.03,148.02,2.97184076]
[1751723219420,17.22729057,148.03,148.02,2.97184076]
[1751723220423,10.47349057,148.03,148.02,2.97184076]
[1751723220821,10.47349057,148.03,148.02,9.72604076]
[1751723221025,6.7535,148.04,148.02,9.72604076]
[1751723221225,6.7535,148.04,148.03,2.97184076]
[1751723221431,17.22936376,148.04,148.03,2.97184076]
[1751723222329,11.49896134,148.04,148.03,2.97184076]
[1751723223130,4.74546134,148.04,148.03,2.97184076]
[1751723225333,11.49876134,148.04,148.03,2.97184076]
[1751723225533,17.23337787,148.04,148.03,2.97184076]
[1751723230734,17.24424974,148.04,148.03,2.97184076]
[1751723231336,17.24411111,148.04,148.03,2.97184076]
[1751723231837,10.49081111,148.04,148.03,2.97184076]
[1751723232136,10.49081111,148.04,148.02,6.7542]
[1751723232337,6.7531,148.05,148.03,2.97184076]
[1751723232532,10.48974937,148.04,148.02,6.7542]
[1751723232734,6.7531,148.05,148.03,2.97184076]
[1751723232932,6.7531,148.05,148.04,2.97184076]
[1751723233132,17.21814468,148.05,148.04,2.97184076]
[1751723242338,12.46242366,148.05,148.04,2.97184076]
[1751723242543,17.22247178,148.05,148.04,2.97184076]
[1751723245655,17.22754148,148.05,148.04,2.97184076]
[1751723248252,6.7533,148.04,147.98,48.1375]
[1751723248558,6.7533,148.04,148.03,2.97184076]
[1751723248750,17.22851764,148.04,148.03,2.97184076]
[1751723249457,10.47521764,148.04,148.03,2.97184076]
[1751723249654,10.47541381,148.04,148.03,2.97184076]
[1751723250553,17.22871381,148.04,148.03,2.97184076]
[1751723257861,17.23060859,148.04,148.03,2.97184076]
[1751723258061,17.23060859,148.04,148.03,2.97108535]
[1751723260165,17.23425791,148.04,148.03,2.97108535]
[1751723260667,17.51626173,148.04,147.97,45.88]
[1751723260862,2.97336505,148.02,147.97,45.88]
[1751723261066,2.97336505,147.99,147.92,45.88]
[1751723261369,12.75216631,147.98,147.94,2.97336505]
[1751723261669,10.48095791,147.97,147.93,2.97336505]
[1751723261966,10.48095791,147.96,147.93,2.97336505]
[1751723262160,2.97336505,147.98,147.94,2.97336505]
[1751723262361,10.45607918,147.97,147.94,2.97336505]
[1751723262562,6.7576,147.95,147.94,2.97336505]
[1751723266173,6.7576,147.95,147.92,52.6387]
[1751723266374,6.7576,147.95,147.94,2.97336505]
[1751723268471,2.97336505,147.96,147.92,48.85336505]
[1751723269065,5.23496505,147.96,147.92,48.85336505]
[1751723269572,6.7583,147.93,147.92,48.85336505]
[1751723270573,6.7588,147.92,147.91,2.97336505]
[1751723270770,6.7588,147.92,147.9,2.97336505]
[1751723272377,6.7588,147.92,147.91,2.97336505]
[1751723272580,6.7588,147.92,147.9,2.97336505]
[1751723276172,2.97336505,147.93,147.89,2.97336505]
[1751723276569,6.7597,147.9,147.89,2.97336505]
[1751723277582,6.7593,147.91,147.89,2.97336505]
[1751723281589,6.7597,147.9,147.89,2.97336505]
[1751723282782,6.7602,147.89,147.88,45.88]
[1751723283378,6.7606,147.88,147.87,2.97336505]
[1751723283985,6.7604,147.89,147.87,2.97336505]
[1751723287487,6.7606,147.88,147.87,2.97336505]
[1751723290089,2.97336505,147.89,147.85,2.97336505]
[1751723290486,6.7618,147.86,147.85,2.97336505]
[1751723292285,6.7613,147.87,147.85,2.97336505]
[1751723292489,6.7613,147.87,147.86,2.97336505]
[1751723300391,6.7608,147.88,147.86,2.97336505]
[1751723300588,6.7608,147.88,147.87,2.97336505]
[1751723303592,2.3052,147.92,147.87,2.97336505]
[1751723303794,4.52961345,147.91,147.89,2.97336505]
[1751723303992,2.3052,147.92,147.89,2.97336505]
[1751723304194,6.7597,147.9,147.89,2.97336505]
[1751723304595,2.3052,147.92,147.88,2.97336505]
[1751723304795,6.7603,147.89,147.88,2.97336505]
[1751723309499,6.7611,147.87,147.86,2.97336505]
[1751723310994,6.7608,147.88,147.86,2.97336505]
[1751723311190,2.97336505,147.9,147.86,9.73486505]
[1751723311394,5.27856505,147.92,147.88,2.97336505]
[1751723311595,5.60040586,147.91,147.88,2.97336505]
[1751723311899,5.60040586,147.9,147.88,2.97336505]
[1751723312201,2.3052,147.92,147.88,2.97336505]
[1751723312402,16.882334,147.91,147.88,2.97736496]
[1751723312598,16.90805276,147.9,147.88,2.97736496]
[1751723312797,4.54726839,147.89,147.88,2.97736496]
[1751723313901,6.7601,147.9,147.88,2.97736496]
[1751723314103,11.01606653,147.94,147.88,2.97736496]
[1751723314298,16.89050285,147.93,147.9,2.97736496]
[1751723314491,8.64286653,147.94,147.9,2.97736496]
[1751723314492,6.78737081,147.92,147.9,2.97736496]
[1751723314706,6.7584,147.93,147.9,9.73706496]
[1751723314897,4.54985102,147.92,147.9,9.73706496]
[1751723315098,6.7584,147.93,147.9,9.73706496]
[1751723315300,4.55006254,147.92,147.85,4.7555]
[1751723315501,2.97736496,147.93,147.84,239.86]
[1751723315803,2.97736496,147.91,147.87,2.97736496]
[1751723316203,6.7606,147.88,147.87,2.97736496]
[1751723317701,6.7604,147.89,147.87,2.97736496]
[1751723317905,6.7604,147.89,147.86,11.41392372]
[1751723318700,6.7599,147.9,147.87,6.761]
[1751723319105,6.7599,147.9,147.86,4.65242372]
[1751723319905,6.7599,147.9,147.86,198.61242372]
[1751723320204,6.7594,147.91,147.88,11.41272372]
[1751723320400,6.7594,147.91,147.88,4.65242372]
[1751723320706,6.7594,147.91,147.88,11.41282372]
[1751723322006,6.7594,147.91,147.88,11.41125105]
[1751723322507,6.7594,147.91,147.88,6.7604]
[1751723322706,6.7594,147.91,147.88,11.41125105]
[1751723327402,72.34241374,147.95,147.9,4.65085105]
[1751723327609,10.22506455,147.94,147.9,4.65085105]
[1751723327807,6.7582,147.94,147.91,6.7589]
[1751723328411,6.758,147.94,147.91,6.7589]
[1751723328609,72.34241374,147.95,147.91,6.7589]
[1751723328810,10.23308408,147.94,147.91,6.7589]
[1751723329008,6.758,147.94,147.91,6.7589]
[1751723329211,6.758,147.94,147.92,4.65085105]
[1751723331222,72.34241374,147.95,147.92,4.65085105]
[1751723332117,6.7583,147.93,147.92,4.65085105]
[1751723333022,6.7583,147.93,147.9,11.41035105]
[1751723333221,6.7589,147.92,147.9,4.65085105]
[1751723334125,6.7597,147.9,147.89,45.88]
[1751723340525,6.7605,147.89,147.86,6.7613]
[1751723344222,6.7601,147.9,147.87,11.41165105]
[1751723344417,6.7601,147.9,147.87,4.65085105]
[1751723345527,6.7601,147.9,147.88,6.7606]
[1751723346123,6.7595,147.91,147.87,4.65085105]
[1751723346321,6.7595,147.91,147.89,4.65085105]
[1751723347626,6.7591,147.92,147.89,4.65085105]
[1751723348531,6.7591,147.92,147.9,6.7597]
[1751723350229,72.34241374,147.95,147.92,6.7587]
[1751723350428,4.62184479,147.94,147.93,4.65085105]
[1751723350930,2.2255,147.96,147.93,4.65085105]
[1751723351231,4.62234696,147.95,147.93,4.65085105]
[1751723351429,2.2255,147.96,147.93,4.65085105]
[1751723351629,4.62140146,147.95,147.93,4.65085105]
[1751723351830,2.2255,147.96,147.93,4.65085105]
[1751723352034,11.37919654,147.95,147.93,4.65085105]
[1751723352328,6.7578,147.95,147.93,4.65085105]
[1751723352529,6.7579,147.94,147.93,4.65085105]
[1751723352830,8.60353261,147.99,147.93,4.65085105]
[1751723353030,6.7571,147.96,147.95,4.65085105]
[1751723356638,6.7571,147.96,147.93,6.7581]
[1751723356639,6.7576,147.95,147.93,11.40895105]
[1751723357534,6.7576,147.95,147.93,4.65085105]
[1751723357742,6.7579,147.94,147.93,4.65085105]
[1751723359542,4.65085105,147.97,147.9,45.86]
[1751723359743,10.33891463,147.96,147.9,45.86]
[1751723360041,10.33891463,147.95,147.9,45.86]
[1751723360245,6.7592,147.92,147.9,45.86]
[1751723365043,6.7592,147.92,147.9,52.6197]
[1751723365844,6.7592,147.91,147.9,45.86]
[1751723369646,6.6592,147.91,147.9,45.86]
[1751723371350,6.6592,147.91,147.88,6.7606]
[1751723375145,6.6592,147.91,147.89,4.65085105]
[1751723375554,2.2668,147.94,147.89,11.41085105]
[1751723375555,6.759,147.92,147.89,11.41085105]
[1751723375753,2.2668,147.94,147.89,11.41085105]
[1751723375946,10.2667652,147.93,147.89,11.41085105]
[1751723376142,2.2668,147.94,147.89,11.41085105]
[1751723376350,4.63223577,147.93,147.89,11.41085105]
[1751723376652,2.2668,147.94,147.89,11.41085105]
[1751723377554,6.7593,147.91,147.89,11.41085105]
[1751723378153,6.759,147.92,147.89,11.41085105]
[1751723378750,6.759,147.92,147.9,6.7596]
[1751723380456,45.88,147.97,147.91,4.65085105]
[1751723380656,12.50835221,147.96,147.91,4.65085105]
[1751723380857,6.7581,147.94,147.91,11.40985105]
[1751723384056,45.88,147.97,147.9,6.7595]
[1751723384263,17.06221157,147.96,147.9,6.7595]
[1751723384560,12.49203083,147.95,147.9,6.7595]
[1751723384757,10.23038566,147.94,147.9,6.7595]
[1751723384957,6.7588,147.92,147.89,11.41075105]
[1751723392260,6.7596,147.91,147.89,4.65085105]
[1751723392460,6.7596,147.91,147.88,6.7605]
[1751723392665,2.3873,147.95,147.87,50.53085105]
[1751723392858,12.54020748,147.94,147.87,50.53085105]
[1751723393059,10.2710681,147.93,147.87,50.53085105]
[1751723393355,4.6755,147.95,147.87,50.53085105]
[1751723393557,12.53919658,147.94,147.87,50.53085105]
[1751723393758,10.27028883,147.93,147.87,50.53085105]
[1751723393960,4.6755,147.95,147.87,50.53085105]
[1751723394161,12.53860664,147.94,147.87,50.53085105]
[1751723394362,10.2698926,147.93,147.87,50.53085105]
[1751723394566,6.7595,147.91,147.89,6.7601]
[1751723398166,6.7595,147.91,147.89,11.41095105]
[1751723399660,6.759,147.92,147.9,6.7597]
[1751723404573,6.7586,147.93,147.91,6.7592]
[1751723404767,10.27344141,147.92,147.91,6.7592]
[1751723404970,5.63705618,147.92,147.91,6.7592]
[1751723405272,6.7586,147.93,147.91,6.7592]
[1751723405875,6.7581,147.94,147.91,11.41005105]
[1751723406967,6.7581,147.94,147.92,6.7586]
[1751723409770,6.7581,147.94,147.91,11.40975105]
[1751723414782,6.30230057,147.97,147.91,11.40975105]
[1751723415080,21.8166567,147.96,147.88,7.04075105]
[1751723415381,6.7596,147.91,147.88,4.65085105]
[1751723415580,6.7596,147.91,147.88,11.41125105]
[1751723417980,6.7596,147.91,147.89,6.7601]
[1751723419678,2.3777,147.95,147.9,11.41025105]
[1751723419876,17.15145283,147.94,147.9,11.41025105]
[1751723420079,12.5492399,147.93,147.9,11.41025105]
[1751723420273,6.7584,147.93,147.9,11.41025105]
[1751723425087,6.7584,147.93,147.91,6.7592]
[1751723427583,6.7581,147.94,147.91,6.7592]
[1751723427782,10.28795667,147.93,147.91,6.7592]
[1751723427972,6.7581,147.94,147.91,6.7592]
[1751723428176,10.28803895,147.93,147.91,6.7592]
[1751723428376,6.7581,147.94,147.91,6.7592]
[1751723428584,10.29847724,147.93,147.91,6.7592]
[1751723428782,6.7581,147.94,147.91,6.7592]
[1751723428983,10.29847724,147.93,147.91,6.7592]
[1751723429282,6.7581,147.94,147.91,6.7592]
[1751723429485,10.29846707,147.93,147.91,6.7592]
[1751723429673,6.7581,147.94,147.91,6.7592]
[1751723429877,10.29846707,147.93,147.91,6.7592]
[1751723430074,6.7581,147.94,147.91,6.7592]
[1751723430278,10.2983421,147.93,147.91,6.7592]
[1751723430481,6.7581,147.94,147.91,6.7592]
[1751723430681,10.29844101,147.93,147.91,6.7592]
[1751723430882,6.7581,147.94,147.91,6.7592]
[1751723431080,10.29844101,147.93,147.91,6.7592]
[1751723431282,6.7581,147.94,147.91,6.7592]
[1751723431487,10.29841609,147.93,147.91,6.7592]
[1751723431780,6.7581,147.94,147.91,6.7592]
[1751723435885,6.7581,147.94,147.93,2.97555933]
[1751723436089,17.06234807,147.94,147.93,2.97555933]
[1751723438787,6.7581,147.94,147.93,2.97555933]
[1751723442291,6.7581,147.94,147.92,2.97555933]
[1751723443394,6.7581,147.94,147.92,2.97566474]
[1751723446889,6.7583,147.93,147.92,2.97566474]
[1751723451998,6.7583,147.94,147.92,2.97566474]
[1751723453697,6.7576,147.95,147.93,2.97566474]
[1751723456093,6.7579,147.94,147.93,2.97566474]
[1751723456291,6.7579,147.94,147.92,9.73436474]
[1751723456500,6.7579,147.94,147.92,9.73437527]
[1751723457294,5.62873953,147.93,147.91,6.7591]
[1751723457493,6.7585,147.93,147.91,2.97567527]
[1751723460900,6.7588,147.92,147.91,2.97567527]
[1751723461700,6.7588,147.92,147.9,2.97567527]
[1751723462399,6.7592,147.91,147.9,2.97567527]
[1751723463502,6.7592,147.91,147.89,52.6201]
[1751723463704,6.7592,147.91,147.89,45.86]
[1751723463901,6.7592,147.91,147.9,2.97567527]
[1751723464400,2.4092,147.94,147.9,2.97567527]
[1751723464602,10.26596202,147.93,147.9,2.97567527]
[1751723464801,10.26596202,147.92,147.9,2.97567527]
[1751723465005,6.7592,147.91,147.9,2.97567527]
[1751723476525,6.7592,147.91,147.89,52.6198]
[1751723476720,6.7592,147.91,147.9,2.97567527]
[1751723476920,6.7592,147.91,147.89,45.86]
[1751723477122,6.7592,147.91,147.9,2.97567527]
[1751723477521,6.759,147.92,147.9,2.97567527]
[1751723481827,6.759,147.92,147.89,52.6199]
[1751723482020,6.759,147.92,147.9,2.97567527]
[1751723492135,6.759,147.92,147.9,9.73537527]
[1751723493436,6.7585,147.93,147.91,9.73487527]
[1751723493737,6.7585,147.93,147.92,2.97567527]
[1751723496031,16.9879651,147.93,147.92,2.97567527]
[1751723505438,10.2294651,147.93,147.9,6.7595]
[1751723505645,2.97567527,147.95,147.91,2.87567527]
[1751723505943,12.5664078,147.94,147.91,2.87567527]
[1751723506143,6.7589,147.92,147.91,2.87567527]
[1751723512645,6.7589,147.92,147.91,2.97567527]
[1751723513950,11.35365459,147.92,147.91,2.97567527]
[1751723514550,17.00963089,147.92,147.91,2.97567527]
[1751723515446,12.4148763,147.92,147.91,2.97567527]
[1751723515648,17.00963682,147.92,147.91,2.97567527]
[1751723515849,11.35366052,147.92,147.91,2.97567527]
[1751723516144,17.00965148,147.92,147.91,2.97567527]
[1751723517052,6.7589,147.92,147.91,2.97567527]
[1751723520655,11.35329062,147.92,147.91,2.97567527]
[1751723520854,17.00898826,147.92,147.91,2.97567527]
[1751723521652,6.7597,147.91,147.9,2.97567527]
[1751723521859,2.97567527,147.93,147.89,48.83567527]
[1751723522057,10.25049263,147.92,147.89,48.83567527]
[1751723522253,2.97567527,147.93,147.89,48.83567527]
[1751723522555,6.7597,147.9,147.89,48.83567527]
[1751723522752,4.59403741,147.9,147.85,45.82]
[1751723522953,2.97567527,147.91,147.87,2.97567527]
[1751723523153,10.24960346,147.9,147.87,2.97567527]
[1751723523357,2.97567527,147.91,147.87,2.97567527]
[1751723523557,10.24806407,147.9,147.87,2.97567527]
[1751723523760,2.97567527,147.91,147.87,2.97567527]
[1751723523961,6.7602,147.89,147.87,2.97567527]
[1751723524564,6.7606,147.88,147.87,2.97567527]
[1751723527670,6.7611,147.87,147.85,52.5817]
[1751723527859,6.7611,147.87,147.86,2.97567527]
[1751723530165,2.97567527,147.87,147.83,2.97567527]
[1751723530371,2.97567527,147.86,147.82,2.97567527]
[1751723530576,6.7629,147.83,147.82,2.97567527]
[1751723531260,2.97567527,147.86,147.82,2.97567527]
[1751723531261,6.7627,147.84,147.82,2.97567527]
[1751723532971,6.7621,147.85,147.83,2.97567527]
[1751723533473,2.97567527,147.87,147.83,2.97567527]
[1751723534269,6.7623,147.85,147.83,2.97567527]
[1751723535173,6.7633,147.83,147.81,45.82]
[1751723535370,6.7633,147.83,147.82,2.97567527]
[1751723535874,6.7626,147.84,147.82,2.97567527]
[1751723537373,6.7626,147.84,147.81,45.82]
[1751723537574,6.7626,147.84,147.82,2.97567527]
[1751723538076,6.7626,147.84,147.83,2.97567527]
[1751723538773,6.7621,147.85,147.83,2.97567527]
[1751723539273,7.54447527,147.88,147.83,2.97567527]
[1751723539572,2.3483,147.88,147.86,2.97567527]
[1751723539772,2.3483,147.88,147.81,45.82]
[1751723539966,6.7616,147.86,147.85,2.97567527]
[1751723540577,6.7616,147.86,147.83,6.7626]
[1751723540878,6.7613,147.87,147.85,2.97567527]
[1751723543371,6.7608,147.88,147.86,2.97567527]
[1751723543576,6.7608,147.88,147.87,2.97567527]
[1751723545382,6.7608,147.88,147.86,2.97567527]
[1751723546181,6.7603,147.89,147.86,9.73717527]
[1751723546384,6.7603,147.89,147.87,2.97567527]
[1751723547178,2.97567527,147.91,147.86,2.97567527]
[1751723547385,6.7609,147.88,147.86,2.97567527]
[1751723547682,2.4297,147.92,147.85,6.762]
[1751723547683,2.97567527,147.9,147.85,9.73767527]
[1751723547888,6.7611,147.87,147.85,2.97567527]
[1751723548286,2.97567527,147.89,147.85,2.97567527]
[1751723548488,6.7615,147.86,147.85,2.97567527]
[1751723551889,6.7613,147.87,147.85,2.97567527]
[1751723552487,6.7608,147.88,147.86,2.97567527]
[1751723552688,6.7608,147.88,147.87,2.97567527]
[1751723553588,6.7603,147.89,147.87,2.97567527]
[1751723554489,2.4297,147.92,147.88,2.97567527]
[1751723554693,9.26009981,147.96,147.91,2.97567527]
[1751723554888,16.81395937,147.95,147.92,2.97567527]
[1751723555089,6.7586,147.93,147.92,2.97567527]
[1751723555289,12.3753675,147.93,147.92,2.97567527]
[1751723555490,6.7586,147.93,147.92,2.97567527]
[1751723558298,48.79567527,147.97,147.92,2.97567527]
[1751723558498,4.45567645,147.96,147.94,2.97567527]
[1751723558698,45.82,147.97,147.94,2.97567527]
[1751723558898,9.75327527,147.98,147.94,2.97567527]
[1751723559201,8.59565548,147.97,147.93,2.97567527]
[1751723559393,2.97567527,147.97,147.93,2.97567527]
[1751723560601,6.758,147.94,147.93,2.97567527]
[1751723562204,2.97567527,147.94,147.89,2.97567527]
[1751723562404,2.97567527,147.93,147.89,2.97567527]
[1751723562601,6.7596,147.91,147.88,48.79567527]
[1751723563193,6.7596,147.91,147.88,45.82]
[1751723563398,6.7596,147.91,147.89,2.97567527]
[1751723564002,6.7597,147.9,147.89,2.97567527]
[1751723565802,6.7597,147.9,147.88,45.82]
[1751723566706,6.7593,147.91,147.88,52.5803]
[1751723571511,6.7593,147.91,147.89,6.7601]
[1751723575605,6.7593,147.91,147.88,45.82]
[1751723575606,4.65365812,147.9,147.82,50.45365812]
[1751723576510,6.7614,147.87,147.84,6.7622]
[1751723578607,4.65365812,147.89,147.82,50.45365812]
[1751723579815,6.7622,147.85,147.82,57.21685812]
[1751723580316,6.7616,147.86,147.82,50.45476872]
[1751723580511,4.65476872,147.9,147.84,4.65476872]
[1751723580912,6.7615,147.87,147.84,11.41716872]
[1751723581210,6.7615,147.87,147.84,4.65476872]
[1751723582813,6.7617,147.86,147.84,4.65476872]
[1751723587117,6.7613,147.87,147.84,11.41716872]
[1751723593824,6.7613,147.87,147.85,2.97862967]
[1751723598613,6.7615,147.86,147.84,2.97862967]
[1751723599425,6.7615,147.86,147.84,9.74102967]
[1751723602022,6.7615,147.86,147.84,2.97862967]
[1751723602415,6.762,147.85,147.83,2.97862967]
[1751723602621,2.97862967,147.86,147.82,48.77862967]
[1751723603324,6.7625,147.84,147.82,48.77862967]
[1751723605930,6.7625,147.84,147.82,55.54192967]
[1751723610633,6.7625,147.84,147.82,48.77862967]
[1751723619541,6.7625,147.84,147.82,55.54192967]
[1751723619738,6.7625,147.84,147.83,2.97862967]
[1751723622441,6.7625,147.84,147.82,55.54192967]
[1751723622942,6.7622,147.85,147.82,55.54192967]
[1751723623130,2.97862967,147.87,147.83,9.74142967]
[1751723623334,5.62770724,147.86,147.84,2.97862967]
[1751723623535,2.97862967,147.88,147.84,2.97862967]
[1751723623739,6.7619,147.86,147.84,2.97862967]
[1751723625345,6.762,147.85,147.83,9.74132967]
[1751723628246,6.7617,147.86,147.83,9.74132967]
[1751723628435,6.7617,147.86,147.84,9.74102967]
[1751723628640,6.7617,147.86,147.84,2.97862967]
[1751723629445,6.762,147.85,147.84,2.97862967]
[1751723635268,6.7618,147.86,147.84,2.97862967]
[1751723635463,6.7618,147.86,147.83,9.74132967]
[1751723639468,6.7621,147.85,147.83,9.74180227]
[1751723639967,6.7621,147.85,147.83,6.7627]
[1751723640167,6.7621,147.85,147.83,2.97910227]
[1751723641465,6.7625,147.84,147.82,6.7632]
[1751723644673,6.7622,147.85,147.82,6.7632]
[1751723644874,9.27341436,147.88,147.83,9.74200227]
[1751723645075,12.50479958,147.87,147.83,9.74200227]
[1751723645278,5.73067594,147.86,147.83,9.74200227]
[1751723645574,2.97910227,147.88,147.83,9.74200227]
[1751723645770,12.50490816,147.87,147.83,9.74200227]
[1751723645974,5.73072519,147.86,147.83,9.74200227]
[1751723646172,2.97910227,147.88,147.83,9.74200227]
[1751723646375,12.50394688,147.87,147.83,9.74200227]
[1751723646569,6.762,147.85,147.83,9.74200227]
[1751723647576,6.762,147.85,147.83,9.74206714]
[1751723648070,6.7625,147.84,147.82,6.7632]
[1751723648270,6.7625,147.84,147.83,2.97916714]
[1751723649875,6.7625,147.84,147.82,2.97916714]